fUSD/lending_fUSD_20260510
["ID","MTS","AMOUNT","RATE_DAILY","PERIOD"]
[421979895,1778400732000,-151.79,0.00039269,120]
[421979904,1778400732000,-4929.0954,0.00039447,2]
[421979911,1778400732000,-154.47137477,0.00039561,2]
[421979902,1778400732000,-1238.42814177,0.000394,120]
[421979901,1778400732000,-1167.73,0.000394,120]
[421979908,1778400732000,-529.97347636,0.000395,30]
[421979910,1778400732000,-150.0,0.0003951,7]
[421979909,1778400732000,-150.0,0.0003951,7]
[421979903,1778400732000,-5433.6287,0.00039447,2]
[421979893,1778400732000,-632.4,0.0003926,120]
[421979894,1778400732000,-151.56,0.00039269,60]
[421979939,1778400732000,-186.97,0.000399,90]
[421979937,1778400732000,-300.0,0.00039898,10]
[421979963,1778400732000,-326.86371824,0.0004,2]
[421979966,1778400732000,-10855.76436332,0.0004,2]
[421979968,1778400732000,-515.27396361,0.0004,2]
[421979964,1778400732000,-319.39059209,0.0004,2]
[421979965,1778400732000,-163.88946249,0.0004,2]
[421979970,1778400732000,-609.89851925,0.0004,2]
[421979969,1778400732000,-688.97486152,0.0004,2]
[421979973,1778400732000,-383.953824,0.0004,2]
[421979982,1778400732000,-345.87,0.0004,120]
[421979981,1778400732000,-755.05,0.0004,120]
[421979967,1778400732000,-1707.70766936,0.0004,2]
[421979983,1778400732000,-198.14,0.0004,120]
[421979979,1778400732000,-201.54,0.0004,120]
[421979977,1778400732000,-358.0,0.0004,30]
[421979976,1778400732000,-205.0,0.0004,7]
[421979974,1778400732000,-250.0,0.0004,7]
[421979978,1778400732000,-354.51,0.0004,120]
[421979980,1778400732000,-398.36,0.0004,120]
[421979984,1778400732000,-361.75,0.0004,120]
[421979986,1778400732000,-2926.0,0.0004,120]
[421979985,1778400732000,-427.06939354,0.0004,68]
[421979940,1778400732000,-421.2,0.000399,90]
[421979975,1778400732000,-250.0,0.0004,7]
[421979962,1778400732000,-4173.78047695,0.0004,2]
[421979972,1778400732000,-10229.02642555,0.0004,7]
[421979960,1778400732000,-24121.69808519,0.0004,2]
[421979941,1778400732000,-1218.73,0.000399,90]
[421979971,1778400732000,-158.0,0.0004,3]
[421979938,1778400732000,-1855.77931672,0.00039899,2]
[421979942,1778400732000,-2626.43418213,0.000399,20]
[421979945,1778400732000,-300.0,0.00039969,10]
[421979943,1778400732000,-213.836194,0.000399,120]
[421979947,1778400732000,-75356.65038207,0.0003997,2]
[421979944,1778400732000,-1600.0,0.00039909,30]
[421979946,1778400732000,-151.79,0.00039969,120]
[421979959,1778400732000,-396.13252379,0.0004,2]
[421979949,1778400732000,-3103788.25670702,0.0003998,30]
[421979936,1778400732000,-212.65984169,0.00039894,2]
[421979950,1778400732000,-155.16,0.00039994,120]
[421979952,1778400732000,-300.0,0.00039994,10]
[421979957,1778400732000,-260.95287587,0.0004,7]
[421979956,1778400732000,-368.84587233,0.0004,3]
[421979948,1778400732000,-30000.0,0.0003997,2]
[421979951,1778400732000,-250.34,0.00039994,120]
[421979955,1778400732000,-300.0,0.00039999,10]
[421979953,1778400732000,-5433.6287,0.00039995,2]
[421979954,1778400732000,-4929.0954,0.00039995,2]
[421979958,1778400732000,-822.44143076,0.0004,3]
[421979961,1778400732000,-1584.86391501,0.0004,2]
[421980029,1778400733000,-151.79,0.00040469,120]
[421980026,1778400733000,-151.79,0.00040369,120]
[421980027,1778400733000,-154.47137477,0.00040383,2]
[421980020,1778400733000,-300.0,0.00040279,2]
[421980019,1778400733000,-300.0,0.00040279,2]
[421980016,1778400733000,-300.0,0.00040279,2]
[421980025,1778400733000,-2960.98,0.0004029,60]
[421980014,1778400733000,-300.0,0.00040279,2]
[421980017,1778400733000,-300.0,0.00040279,2]
[421980015,1778400733000,-300.0,0.00040279,2]
[421980033,1778400733000,-289.98873107,0.00040547,10]
[421980024,1778400733000,-684.72,0.0004029,60]
[421980031,1778400733000,-1238.42814177,0.000405,120]
[421980043,1778400733000,-153.92,0.0004069,120]
[421980030,1778400733000,-1167.73,0.000405,120]
[421980035,1778400733000,-150.0,0.00040549,7]
[421980037,1778400733000,-194.0,0.000406,120]
[421980028,1778400733000,-162.49320259,0.00040421,2]
[421980034,1778400733000,-150.0,0.00040549,7]
[421980036,1778400733000,-151.79,0.00040569,120]
[421980039,1778400733000,-373.52418369,0.00040609,12]
[421980038,1778400733000,-150.0,0.00040605,2]
[421980042,1778400733000,-151.79,0.00040669,120]
[421980045,1778400733000,-1255.61,0.0004075,120]
[421980041,1778400733000,-154.47137477,0.00040657,2]
[421980021,1778400733000,-300.0,0.00040279,2]
[421980032,1778400733000,-162.49320259,0.00040521,2]
[421980023,1778400733000,-500.0,0.00040284,18]
[421979993,1778400733000,-217531.21725302,0.0004,120]
[421980018,1778400733000,-300.0,0.00040279,2]
[421980046,1778400733000,-154.4,0.0004075,120]
[421979989,1778400733000,-3235.21466438,0.0004,30]
[421979988,1778400733000,-160.3085414,0.0004,120]
[421979987,1778400733000,-1859.78266191,0.0004,120]
[421979990,1778400733000,-2000.0,0.0004,120]
[421979998,1778400733000,-155.0,0.0004,120]
[421979992,1778400733000,-3917.38673469,0.0004,120]
[421979994,1778400733000,-164.91872754,0.0004,120]
[421979995,1778400733000,-293.86141205,0.0004,120]
[421979996,1778400733000,-350.40234754,0.0004,3]
[421980000,1778400733000,-151.79,0.00040069,120]
[421979999,1778400733000,-194.0,0.0004,120]
[421979991,1778400733000,-155.79118996,0.0004,120]
[421979997,1778400733000,-6330.07706337,0.0004,120]
[421980003,1778400733000,-500.0,0.00040131,30]
[421980001,1778400733000,-154.47137477,0.00040109,2]
[421980004,1778400733000,-5433.6287,0.00040132,2]
[421980009,1778400733000,-150.0,0.00040203,7]
[421980010,1778400733000,-300.0,0.00040268,10]
[421980002,1778400733000,-300.0,0.00040131,10]
[421980007,1778400733000,-151.79,0.00040169,120]
[421980005,1778400733000,-4929.0954,0.00040132,2]
[421980011,1778400733000,-5433.629,0.00040269,2]
[421980006,1778400733000,-250.49408928,0.00040139,2]
[421980012,1778400733000,-4929.0958,0.00040269,2]
[421980008,1778400733000,-150.0,0.00040203,7]
[421980022,1778400733000,-420.92,0.00040279,2]
[421980013,1778400733000,-151.79,0.00040269,120]
[421980040,1778400733000,-162.49320259,0.00040621,2]
[421980093,1778400733000,-2462.35358913,0.00040794,14]
[421980044,1778400733000,-162.49320259,0.00040721,2]
[421980085,1778400733000,-1527.22907943,0.00040794,2]
[421980083,1778400733000,-5327.23888534,0.00040794,2]
[421980081,1778400733000,-1559.68808231,0.00040794,2]
[421980076,1778400733000,-721.1802054,0.00040794,2]
[421980077,1778400733000,-357.32629418,0.00040794,2]
[421980078,1778400733000,-2875.30827399,0.00040794,2]
[421980079,1778400733000,-333.58120221,0.00040794,20]
[421980096,1778400733000,-500.0,0.00040794,2]
[421980088,1778400733000,-2774.80108357,0.00040794,2]
[421980097,1778400733000,-1293.4703415,0.00040794,2]
[421980095,1778400733000,-15872.99767827,0.00040794,3]
[421980090,1778400733000,-155.16155978,0.00040794,2]
[421980082,1778400733000,-1056.28059811,0.00040794,2]
[421980092,1778400733000,-1013.64331103,0.00040794,5]
[421980094,1778400733000,-255.48636172,0.00040794,2]
[421980086,1778400733000,-2521.66510009,0.00040794,2]
[421980105,1778400733000,-9487.8649386,0.00040794,2]
[421980091,1778400733000,-1720.1448858,0.00040794,2]
[421980103,1778400733000,-500.0,0.00040794,5]
[421980099,1778400733000,-58893.15473636,0.00040794,2]
[421980100,1778400733000,-1068.10774877,0.00040794,2]
[421980101,1778400733000,-600.0,0.00040794,5]
[421980104,1778400733000,-15895.44474793,0.00040794,2]
[421980102,1778400733000,-559.1589451,0.00040794,2]
[421980098,1778400733000,-1332.29273407,0.00040794,15]
[421980049,1778400733000,-500.0,0.00040777,3]
[421980089,1778400733000,-222224.96057899,0.00040794,2]
[421980080,1778400733000,-991.79877833,0.00040794,2]
[421980087,1778400733000,-300.0,0.00040794,15]
[421980074,1778400733000,-1210.0,0.00040794,2]
[421980047,1778400733000,-151.79,0.00040769,120]
[421980084,1778400733000,-503.58097594,0.00040794,2]
[421980048,1778400733000,-500.0,0.00040777,3]
[421980055,1778400733000,-500.0,0.00040777,3]
[421980056,1778400733000,-500.0,0.00040777,3]
[421980059,1778400733000,-150.0,0.00040778,10]
[421980052,1778400733000,-500.0,0.00040777,3]
[421980050,1778400733000,-500.0,0.00040777,3]
[421980058,1778400733000,-150.0,0.00040778,60]
[421980060,1778400733000,-150.0,0.00040778,10]
[421980051,1778400733000,-500.0,0.00040777,3]
[421980054,1778400733000,-500.0,0.00040777,3]
[421980057,1778400733000,-240.03764165,0.00040777,3]
[421980072,1778400733000,-125348.26536735,0.00040794,2]
[421980053,1778400733000,-500.0,0.00040777,3]
[421980073,1778400733000,-10976.73245787,0.00040794,3]
[421980075,1778400733000,-52292.179361,0.00040794,2]
[421980071,1778400733000,-711762.9418603,0.00040794,2]
[421980069,1778400733000,-207485.18574924,0.00040794,2]
[421980064,1778400733000,-50000.0,0.00040793,61]
[421980065,1778400733000,-193.82,0.00040794,2]
[421980067,1778400733000,-193.82,0.00040794,2]
[421980068,1778400733000,-401.12979529,0.00040794,2]
[421980070,1778400733000,-172274.07954247,0.00040794,2]
[421980063,1778400733000,-203.0,0.00040778,10]
[421980066,1778400733000,-15780.14616077,0.00040794,2]
[421980061,1778400733000,-150.0,0.00040778,10]
[421980062,1778400733000,-150.0,0.00040778,10]
[421980144,1778400734000,-2500.0,0.00040794,2]
[421980143,1778400734000,-1092.65254128,0.00040794,2]
[421980141,1778400734000,-226.81006079,0.00040794,5]
[421980140,1778400734000,-641.67580776,0.00040794,2]
[421980142,1778400734000,-219.98062099,0.00040794,2]
[421980146,1778400734000,-1100.0,0.00040794,2]
[421980138,1778400734000,-7994.63919858,0.00040794,2]
[421980136,1778400734000,-1058.00937616,0.00040794,2]
[421980139,1778400734000,-678.47260553,0.00040794,2]
[421980148,1778400734000,-934.35272765,0.00040794,2]
[421980151,1778400734000,-1625.97983997,0.00040794,2]
[421980145,1778400734000,-350.41936909,0.00040794,2]
[421980159,1778400734000,-12563.61343814,0.00040794,2]
[421980162,1778400734000,-247.47418765,0.00040794,2]
[421980152,1778400734000,-1121.99523947,0.00040794,5]
[421980149,1778400734000,-493.30890975,0.00040794,2]
[421980150,1778400734000,-630.99246307,0.00040794,2]
[421980156,1778400734000,-373.70317472,0.00040794,2]
[421980153,1778400734000,-561.66754797,0.00040794,2]
[421980155,1778400734000,-1036.42791583,0.00040794,2]
[421980157,1778400734000,-2259.14331232,0.00040794,2]
[421980161,1778400734000,-1881.63230544,0.00040794,2]
[421980154,1778400734000,-175.49215679,0.00040794,15]
[421980158,1778400734000,-2262.82801284,0.00040794,2]
[421980163,1778400734000,-1145.57091095,0.00040794,2]
[421980173,1778400734000,-5840.99840745,0.00040794,2]
[421980147,1778400734000,-3925.38371699,0.00040794,2]
[421980160,1778400734000,-15198.58789302,0.00040794,2]
[421980137,1778400734000,-677.72762675,0.00040794,2]
[421980109,1778400734000,-207026.23479077,0.00040794,2]
[421980129,1778400734000,-15333.69742929,0.00040794,2]
[421980107,1778400734000,-1221.0,0.00040794,4]
[421980165,1778400734000,-279.94589775,0.00040794,2]
[421980106,1778400734000,-1344.98105642,0.00040794,2]
[421980115,1778400734000,-188.7210912,0.00040794,2]
[421980122,1778400734000,-632460.99671274,0.00040794,2]
[421980110,1778400734000,-2253.92454979,0.00040794,2]
[421980112,1778400734000,-766.53472117,0.00040794,2]
[421980117,1778400734000,-5019.12995324,0.00040794,2]
[421980113,1778400734000,-13182.0978914,0.00040794,2]
[421980121,1778400734000,-587.56193637,0.00040794,2]
[421980114,1778400734000,-503.9879285,0.00040794,2]
[421980120,1778400734000,-995.17445648,0.00040794,2]
[421980119,1778400734000,-2033.56878357,0.00040794,4]
[421980111,1778400734000,-23523.97964254,0.00040794,2]
[421980118,1778400734000,-643.0,0.00040794,2]
[421980116,1778400734000,-15388.03381167,0.00040794,3]
[421980123,1778400734000,-3325.52907553,0.00040794,2]
[421980125,1778400734000,-15190.04553944,0.00040794,2]
[421980127,1778400734000,-10995.74046437,0.00040794,2]
[421980128,1778400734000,-174671.5062459,0.00040794,2]
[421980126,1778400734000,-550.0,0.00040794,2]
[421980124,1778400734000,-179.80803503,0.00040794,2]
[421980134,1778400734000,-384.31500789,0.00040794,2]
[421980135,1778400734000,-1309.26020386,0.00040794,2]
[421980130,1778400734000,-234.42094229,0.00040794,2]
[421980133,1778400734000,-6000.0,0.00040794,2]
[421980132,1778400734000,-501.48508012,0.00040794,3]
[421980131,1778400734000,-177.90629968,0.00040794,2]
[421980170,1778400734000,-1157.3,0.00040794,15]
[421980108,1778400734000,-3513.27416531,0.00040794,2]
[421980164,1778400734000,-30887.51205145,0.00040794,2]
[421980200,1778400734000,-5018.68485795,0.00040794,2]
[421980203,1778400734000,-4426.26,0.00040794,2]
[421980209,1778400734000,-50000.0,0.00040794,50]
[421980206,1778400734000,-929.2966846,0.00040794,120]
[421980204,1778400734000,-152.17,0.00040794,2]
[421980201,1778400734000,-500.0,0.00040794,2]
[421980202,1778400734000,-1990.0,0.00040794,2]
[421980205,1778400734000,-54471.69318653,0.00040794,2]
[421980207,1778400734000,-705205.1933597,0.00040794,30]
[421980221,1778400734000,-961.69,0.00040794,120]
[421980211,1778400734000,-500.0,0.00040794,120]
[421980214,1778400734000,-299.98736577,0.00040794,120]
[421980213,1778400734000,-299.98736577,0.00040794,120]
[421980212,1778400734000,-3698.5,0.00040794,120]
[421980220,1778400734000,-299.98736577,0.00040794,120]
[421980215,1778400734000,-299.98736577,0.00040794,120]
[421980218,1778400734000,-299.98736577,0.00040794,120]
[421980216,1778400734000,-299.98736577,0.00040794,120]
[421980217,1778400734000,-299.98736577,0.00040794,120]
[421980219,1778400734000,-299.98736577,0.00040794,120]
[421980222,1778400734000,-196.94104175,0.00040794,120]
[421980225,1778400734000,-200.57253051,0.00040794,120]
[421980224,1778400734000,-244.4,0.00040794,30]
[421980227,1778400734000,-202.46,0.00040794,120]
[421980226,1778400734000,-169.41940567,0.00040794,30]
[421980223,1778400734000,-366.4,0.00040794,120]
[421980171,1778400734000,-207.84708128,0.00040794,2]
[421980208,1778400734000,-50000.0,0.00040794,48]
[421980199,1778400734000,-180.0,0.00040794,2]
[421980210,1778400734000,-50000.0,0.00040794,51]
[421980193,1778400734000,-160.69601743,0.00040794,2]
[421980172,1778400734000,-289.76658585,0.00040794,2]
[421980198,1778400734000,-5421.50724009,0.00040794,2]
[421980168,1778400734000,-2500.59864011,0.00040794,2]
[421980167,1778400734000,-20833.60871871,0.00040794,2]
[421980169,1778400734000,-884.61392544,0.00040794,2]
[421980175,1778400734000,-2228.08748139,0.00040794,2]
[421980185,1778400734000,-13711.42908412,0.00040794,2]
[421980174,1778400734000,-897.73340926,0.00040794,2]
[421980176,1778400734000,-150.0,0.00040794,2]
[421980177,1778400734000,-471.94585764,0.00040794,2]
[421980178,1778400734000,-12976.38303086,0.00040794,2]
[421980180,1778400734000,-363.12317263,0.00040794,2]
[421980179,1778400734000,-610.0,0.00040794,2]
[421980183,1778400734000,-761.02213505,0.00040794,2]
[421980166,1778400734000,-412.43136231,0.00040794,2]
[421980181,1778400734000,-518.69189631,0.00040794,2]
[421980192,1778400734000,-199.86359397,0.00040794,2]
[421980195,1778400734000,-2641.52341817,0.00040794,5]
[421980194,1778400734000,-1603.06440843,0.00040794,2]
[421980191,1778400734000,-10000.0,0.00040794,3]
[421980182,1778400734000,-204.4080963,0.00040794,2]
[421980188,1778400734000,-379.0,0.00040794,2]
[421980196,1778400734000,-21094.02953543,0.00040794,3]
[421980190,1778400734000,-468.21455986,0.00040794,2]
[421980186,1778400734000,-201.47048351,0.00040794,2]
[421980197,1778400734000,-745.13082942,0.00040794,10]
[421980187,1778400734000,-1530.55704727,0.00040794,2]
[421980184,1778400734000,-506.23699287,0.00040794,5]
[421980189,1778400734000,-20000.0,0.00040794,2]
[421980269,1778400735000,-166.96410691,0.00040794,120]
[421980268,1778400735000,-167.48056273,0.00040794,30]
[421980267,1778400735000,-479.04,0.00040794,30]
[421980278,1778400735000,-174.40223354,0.00040794,120]
[421980266,1778400735000,-505.66,0.00040794,30]
[421980259,1778400735000,-151.81,0.00040794,30]
[421980262,1778400735000,-152.1,0.00040794,30]
[421980257,1778400735000,-10244.10364383,0.00040794,2]
[421980261,1778400735000,-12026.29670429,0.00040794,30]
[421980271,1778400735000,-17449.30307977,0.00040794,120]
[421980260,1778400735000,-151.81,0.00040794,30]
[421980258,1778400735000,-266.31376373,0.00040794,120]
[421980270,1778400735000,-322.61557869,0.00040794,45]
[421980285,1778400735000,-729.54161026,0.00040794,30]
[421980275,1778400735000,-30068.99103182,0.00040794,30]
[421980274,1778400735000,-200.72273907,0.00040794,120]
[421980273,1778400735000,-179.95113917,0.00040794,120]
[421980272,1778400735000,-561.75854655,0.00040794,30]
[421980276,1778400735000,-479.02,0.00040794,30]
[421980288,1778400735000,-520.4410522,0.00040794,120]
[421980284,1778400735000,-159.89335456,0.00040794,30]
[421980280,1778400735000,-639.76,0.00040794,30]
[421980290,1778400735000,-625.95275546,0.00040794,30]
[421980281,1778400735000,-175.6823322,0.00040794,90]
[421980289,1778400735000,-146388.41141649,0.00040794,120]
[421980265,1778400735000,-350.42,0.00040794,30]
[421980277,1778400735000,-639.76,0.00040794,30]
[421980264,1778400735000,-639.76,0.00040794,30]
[421980229,1778400735000,-188.47409994,0.00040794,30]
[421980256,1778400735000,-50000.0,0.00040794,53]
[421980279,1778400735000,-164.46,0.00040794,30]
[421980231,1778400735000,-1353.19,0.00040794,120]
[421980232,1778400735000,-216.69,0.00040794,120]
[421980230,1778400735000,-268.39015241,0.00040794,120]
[421980228,1778400735000,-1345.32,0.00040794,120]
[421980234,1778400735000,-154.66,0.00040794,120]
[421980233,1778400735000,-277500.0,0.00040794,7]
[421980235,1778400735000,-421.86,0.00040794,120]
[421980236,1778400735000,-50000.0,0.00040794,52]
[421980240,1778400735000,-639.76,0.00040794,30]
[421980239,1778400735000,-300.4,0.00040794,30]
[421980242,1778400735000,-3099.6763894,0.00040794,60]
[421980241,1778400735000,-104999.999994,0.00040794,32]
[421980263,1778400735000,-151.8,0.00040794,30]
[421980237,1778400735000,-206.13,0.00040794,30]
[421980243,1778400735000,-657.60087943,0.00040794,30]
[421980248,1778400735000,-158.63829054,0.00040794,120]
[421980246,1778400735000,-1106.43573129,0.00040794,30]
[421980244,1778400735000,-18055.44804326,0.00040794,120]
[421980247,1778400735000,-171.15952928,0.00040794,120]
[421980249,1778400735000,-168.63528704,0.00040794,30]
[421980245,1778400735000,-940.63643996,0.00040794,30]
[421980255,1778400735000,-294.44379904,0.00040794,30]
[421980251,1778400735000,-4122.73,0.00040794,30]
[421980253,1778400735000,-322.82912999,0.00040794,120]
[421980252,1778400735000,-469.26584208,0.00040794,120]
[421980254,1778400735000,-646.09396808,0.00040794,30]
[421980250,1778400735000,-195.2499294,0.00040794,120]
[421980238,1778400735000,-479.02,0.00040794,30]
[421980282,1778400735000,-3108.37678102,0.00040794,30]
[421980295,1778400735000,-176.58538271,0.00040794,120]
[421980291,1778400735000,-647.14,0.00040794,30]
[421980329,1778400735000,-655.135372,0.00040794,7]
[421980330,1778400735000,-655.135372,0.00040794,7]
[421980322,1778400735000,-500.0,0.00040794,120]
[421980327,1778400735000,-159.89568,0.00040794,30]
[421980323,1778400735000,-577.8,0.00040794,30]
[421980325,1778400735000,-603.44285029,0.00040794,2]
[421980326,1778400735000,-655.135372,0.00040794,7]
[421980321,1778400735000,-4634.87,0.00040794,2]
[421980332,1778400735000,-162.49320259,0.00040821,2]
[421980331,1778400735000,-151.0,0.00040794,30]
[421980336,1778400735000,-330.09,0.000409,17]
[421980334,1778400735000,-150.0,0.00040896,7]
[421980343,1778400735000,-1872.0,0.00041,7]
[421980342,1778400735000,-440.22422398,0.00041,5]
[421980333,1778400735000,-151.79,0.00040869,120]
[421980341,1778400735000,-168.68,0.00041,5]
[421980340,1778400735000,-161.52,0.0004099,120]
[421980337,1778400735000,-162.49320259,0.00040921,2]
[421980338,1778400735000,-154.47137477,0.00040931,2]
[421980335,1778400735000,-1000.0,0.000409,120]
[421980339,1778400735000,-151.79,0.00040969,120]
[421980349,1778400735000,-1156.57058307,0.00041,90]
[421980287,1778400735000,-177.35915222,0.00040794,120]
[421980347,1778400735000,-710.36812025,0.00041,30]
[421980348,1778400735000,-19009.85970157,0.00041,6]
[421980346,1778400735000,-1000.0,0.00041,120]
[421980345,1778400735000,-358.0,0.00041,30]
[421980328,1778400735000,-655.135372,0.00040794,7]
[421980320,1778400735000,-639.76,0.00040794,30]
[421980344,1778400735000,-5702.052,0.00041,2]
[421980324,1778400735000,-639.76,0.00040794,30]
[421980319,1778400735000,-639.76,0.00040794,30]
[421980286,1778400735000,-1195.65064204,0.00040794,30]
[421980283,1778400735000,-185.01430999,0.00040794,120]
[421980296,1778400735000,-508.08459877,0.00040794,2]
[421980297,1778400735000,-1953.84013672,0.00040794,120]
[421980294,1778400735000,-159.3483315,0.00040794,120]
[421980299,1778400735000,-473.79286894,0.00040794,49]
[421980298,1778400735000,-220.2045346,0.00040794,120]
[421980303,1778400735000,-154.7426259,0.00040794,120]
[421980293,1778400735000,-189.06673075,0.00040794,120]
[421980300,1778400735000,-21169.15427294,0.00040794,30]
[421980305,1778400735000,-684.14453628,0.00040794,120]
[421980304,1778400735000,-1390.49725888,0.00040794,30]
[421980302,1778400735000,-269.48439333,0.00040794,30]
[421980292,1778400735000,-32564.48834128,0.00040794,120]
[421980307,1778400735000,-639.76,0.00040794,30]
[421980301,1778400735000,-184.32855294,0.00040794,30]
[421980315,1778400735000,-425.22381359,0.00040794,120]
[421980314,1778400735000,-492.56317225,0.00040794,120]
[421980313,1778400735000,-2952.00646423,0.00040794,120]
[421980312,1778400735000,-169.72946097,0.00040794,31]
[421980311,1778400735000,-446.07566265,0.00040794,30]
[421980316,1778400735000,-571.02485899,0.00040794,30]
[421980306,1778400735000,-1020.16264786,0.00040794,2]
[421980318,1778400735000,-161.91811822,0.00040794,120]
[421980309,1778400735000,-1578.92263632,0.00040794,49]
[421980308,1778400735000,-2889.37938823,0.00040794,120]
[421980317,1778400735000,-212809.97375039,0.00040794,120]
[421980310,1778400735000,-185.28740134,0.00040794,30]
[421980385,1778400736000,-200.0,0.00041096,7]
[421980383,1778400736000,-2000.0,0.00041096,7]
[421980384,1778400736000,-200.0,0.00041096,7]
[421980380,1778400736000,-201.1,0.00041096,120]
[421980378,1778400736000,-1500.0,0.00041096,10]
[421980379,1778400736000,-201.1,0.00041096,120]
[421980382,1778400736000,-151.555,0.00041096,120]
[421980377,1778400736000,-1500.0,0.00041096,10]
[421980375,1778400736000,-151.0,0.00041096,120]
[421980376,1778400736000,-2400.33794972,0.00041096,10]
[421980387,1778400736000,-238.57788094,0.00041096,14]
[421980394,1778400736000,-291.78,0.00041096,120]
[421980388,1778400736000,-156.97555839,0.00041096,14]
[421980390,1778400736000,-150.0,0.00041096,120]
[421980389,1778400736000,-150.0,0.00041096,120]
[421980391,1778400736000,-150.0,0.00041096,120]
[421980392,1778400736000,-150.0,0.00041096,120]
[421980395,1778400736000,-1000.0,0.000411,120]
[421980393,1778400736000,-150.0,0.00041096,120]
[421980396,1778400736000,-194.0,0.000411,120]
[421980397,1778400736000,-363.60746394,0.000411,120]
[421980372,1778400736000,-800.0,0.00041096,30]
[421980386,1778400736000,-237.2028677,0.00041096,14]
[421980374,1778400736000,-176.0,0.00041096,30]
[421980361,1778400736000,-800.0,0.00041096,30]
[421980371,1778400736000,-800.0,0.00041096,30]
[421980402,1778400736000,-363.60746394,0.000411,120]
[421980351,1778400736000,-186.0,0.00041,90]
[421980352,1778400736000,-162.49320259,0.00041021,2]
[421980354,1778400736000,-151.79,0.00041069,120]
[421980355,1778400736000,-165.04427904,0.00041074,2]
[421980350,1778400736000,-354.17176249,0.00041,60]
[421980356,1778400736000,-153.92,0.0004109,120]
[421980353,1778400736000,-1143.5,0.00041041,120]
[421980358,1778400736000,-354.84,0.00041096,10]
[421980357,1778400736000,-242.5693457,0.00041095,120]
[421980373,1778400736000,-800.0,0.00041096,30]
[421980362,1778400736000,-800.0,0.00041096,30]
[421980368,1778400736000,-800.0,0.00041096,30]
[421980359,1778400736000,-1561.0,0.00041096,120]
[421980360,1778400736000,-2615.24745585,0.00041096,120]
[421980365,1778400736000,-800.0,0.00041096,30]
[421980363,1778400736000,-800.0,0.00041096,30]
[421980367,1778400736000,-800.0,0.00041096,30]
[421980366,1778400736000,-800.0,0.00041096,30]
[421980364,1778400736000,-800.0,0.00041096,30]
[421980370,1778400736000,-800.0,0.00041096,30]
[421980381,1778400736000,-151.56,0.00041096,60]
[421980369,1778400736000,-800.0,0.00041096,30]
[421980399,1778400736000,-363.60746394,0.000411,120]
[421980425,1778400736000,-848.41741587,0.000411,120]
[421980400,1778400736000,-363.60746394,0.000411,120]
[421980432,1778400736000,-848.41741587,0.000411,120]
[421980450,1778400736000,-151.0,0.00041205,120]
[421980433,1778400736000,-848.41741587,0.000411,120]
[421980428,1778400736000,-848.41741587,0.000411,120]
[421980427,1778400736000,-848.41741587,0.000411,120]
[421980429,1778400736000,-848.41741587,0.000411,120]
[421980430,1778400736000,-848.41741587,0.000411,120]
[421980436,1778400736000,-848.41,0.000411,120]
[421980437,1778400736000,-151.81,0.00041109,120]
[421980447,1778400736000,-3308.252344,0.00041205,120]
[421980434,1778400736000,-848.41741587,0.000411,120]
[421980442,1778400736000,-1000.0,0.000412,120]
[421980441,1778400736000,-2400.0,0.00041187,30]
[421980445,1778400736000,-3308.252344,0.00041205,120]
[421980440,1778400736000,-151.79,0.00041169,120]
[421980444,1778400736000,-3308.252344,0.00041205,120]
[421980439,1778400736000,-500.0,0.00041166,19]
[421980443,1778400736000,-154.47137477,0.00041205,2]
[421980449,1778400736000,-245.0,0.00041205,120]
[421980448,1778400736000,-151.0,0.00041205,120]
[421980451,1778400736000,-151.0,0.00041205,120]
[421980398,1778400736000,-363.60746394,0.000411,120]
[421980438,1778400736000,-162.49320259,0.00041121,2]